fUSD/lending_fUSD_20251201
["ID","MTS","AMOUNT","RATE_DAILY","PERIOD"]
[395315984,1764613852045,-292.747024,0.00017,2]
[395315985,1764613852055,-1322.0,0.00020538,2]
[395315986,1764613852065,-292.747024,0.00022921,2]
[395315987,1764613852075,-292.747024,0.00022921,2]
[395315988,1764613852085,-130741.46468655,0.000248,3]
[395315989,1764613852110,-500.0,0.00016438,2]
[395315990,1764613852119,-500.0,0.00016438,2]
[395315991,1764613852130,-15071.79026285,0.000248,3]
[395315992,1764613852142,-11455.88315591,0.000248,3]
[395315993,1764613852154,-30478.51367212,0.000248,3]
[395315994,1764613852165,-12153.10710657,0.000248,3]
[395315995,1764613852177,-872.26117996,0.000248,3]
[395315996,1764613852212,-500.0,0.00016438,2]
[395315997,1764613852222,-500.0,0.00016438,2]
[395315998,1764613852232,-500.0,0.00016438,2]
[395315999,1764613852241,-1265.67133995,0.000248,3]
[395316000,1764613852332,-500.0,0.00016438,2]
[395316001,1764613852342,-500.0,0.00016438,2]
[395316002,1764613852351,-500.0,0.00016438,2]
[395316003,1764613852361,-60.68417456,0.00016438,2]
[395316004,1764613852761,-439.31582544,0.00016438,2]
[395316005,1764613852771,-386.77801848,0.00016438,2]
[395316006,1764613852827,-113.22198152,0.00016438,2]
[395316007,1764613852836,-500.0,0.00016438,2]
[395316008,1764613852846,-500.0,0.00016438,2]
[395316009,1764613852855,-500.0,0.00016438,2]
[395316010,1764613852866,-368.08801848,0.00016438,2]
[395316011,1764613852878,-131.91198152,0.00016438,2]
[395316012,1764613852888,-158.18801848,0.00016438,2]
[395316013,1764613853343,-341.81198152,0.00016438,2]
[395316014,1764613853354,-321.89224828,0.00016438,2]
[395316015,1764613853367,-178.10775172,0.00016438,2]
[395316016,1764613853377,-500.0,0.00016438,2]
[395316017,1764613853388,-500.0,0.00016438,2]
[395316018,1764613853399,-292.747024,0.00017,2]
[395316019,1764613853409,-292.747024,0.00022921,2]
[395316020,1764613853420,-2236.39820028,0.000248,3]
[395316023,1764614124289,167.81,9.275e-05,2]
[395316024,1764614124482,167.81,0.0001113,2]
[395316050,1764614982005,151.59,0.00011761,2]
[395316061,1764615031540,-167.81,0.00012985,2]
[395316063,1764615031550,-250.0,0.00013342,2]
[395316065,1764615031559,-115.86429495,0.00013699,2]
[395316067,1764615031571,-563.26570505,0.00013699,2]
[395316068,1764615031580,-222.06456636,0.00014283,2]
[395316069,1764615031590,-195.0,0.00014283,2]
[395316070,1764615031600,-250.0,0.00014283,2]
[395316071,1764615031609,-16.71751326,0.00014296,2]
[395316072,1764615031643,-6.999999,0.00014296,2]
[395316073,1764615031688,-269.28248774,0.00014296,2]
[395316074,1764615031697,-4.56181762,0.00014297,2]
[395316075,1764615031708,-1195.43818238,0.00014297,2]
[395316076,1764615031718,-300.0,0.00014297,2]
[395316077,1764615031728,-967.56181762,0.00014298,2]
[395316078,1764615031739,-2237.07352637,0.00014298,2]
[395316079,1764615031774,-263.192,0.00014298,2]
[395316080,1764615031784,-3261.98046581,0.00014298,2]
[395316081,1764615031794,-1175.73,0.00014806,2]
[395316082,1764615031803,-167.81,0.0001484,2]
[395316083,1764615031813,-153.78,0.00014922,2]
[395316084,1764615031823,-500.0,0.00014977,2]
[395316085,1764615031832,-151.0,0.00015457,2]
[395316086,1764615031841,-151.0,0.00015463,2]
[395316087,1764615031851,-1000.0,0.00015465,2]
[395316088,1764615031860,-300.0,0.00015465,2]
[395316090,1764615031870,-500.0,0.00015465,2]
[395316092,1764615031884,-500.0,0.00015465,2]
[395316093,1764615031896,-438.43966824,0.00015465,2]
[395316094,1764615031906,-150.99,0.00015465,2]
[395316095,1764615031916,-500.0,0.00015465,2]
[395316096,1764615031930,-500.0,0.00015465,2]
[395316097,1764615031940,-500.0,0.00015465,2]
[395316098,1764615031950,-500.0,0.00015465,2]
[395316100,1764615031965,-562.73829746,0.00015465,2]
[395316102,1764615031979,-326.53561029,0.00015465,2]
[395316104,1764615031989,-3037.443,0.00015466,2]
[395316106,1764615031998,-189.686,0.00015466,2]
[395316108,1764615032008,-52578.20156383,0.00015466,2]
[395316109,1764615032020,-8141.3955862,0.00015466,2]
[395316110,1764615032031,-274.6787721,0.00015466,2]
[395316111,1764615032043,-601.47958321,0.00015466,2]
[395316116,1764615037792,-583.72879,0.00015323,2]
[395316117,1764615037803,-467.745,0.00015323,2]
[395316118,1764615037900,-500.52621,0.00015323,2]
[395316120,1764615037909,-2810.33594712,0.00015466,2]
[395316123,1764615037921,-1356.36051021,0.00015466,2]
[395316128,1764615039696,-53744.77740974,0.00015466,2]
[395316129,1764615039750,-459.33174861,0.00015466,2]
[395316130,1764615039761,-876.74110386,0.00015466,2]
[395316131,1764615039803,-300.35996914,0.00015466,2]
[395316132,1764615039910,-80472.60173038,0.00015466,2]
[395316133,1764615039968,-11982.82938632,0.00015466,2]
[395316134,1764615039980,-3307.21390257,0.00015466,2]
[395316135,1764615039991,-292.0,0.00015466,2]
[395316136,1764615040002,-39043.34967496,0.00015466,2]
[395316137,1764615040014,-853.3284752,0.00015466,2]
[395316138,1764615040025,-1477.1,0.00015466,2]
[395316139,1764615040037,-501427.91463655,0.00015466,2]
[395316140,1764615040046,-200.0,0.00015557,2]
[395316141,1764615040055,-500.0,0.00015557,2]
[395316142,1764615040064,-362.57091125,0.00015557,2]
[395316143,1764615040073,-500.0,0.00015557,2]
[395316144,1764615040083,-500.0,0.00015557,2]
[395316145,1764615040092,-500.0,0.00015557,2]
[395316146,1764615040101,-500.0,0.00015557,2]
[395316147,1764615040110,-200.0,0.00015557,2]
[395316148,1764615040119,-500.0,0.00015557,2]
[395316149,1764615040128,-500.0,0.00015557,2]
[395316150,1764615040137,-500.0,0.00015557,2]
[395316151,1764615040146,-500.0,0.00015557,2]
[395316152,1764615040155,-200.0,0.00015557,2]
[395316153,1764615040165,-500.0,0.00015557,2]
[395316154,1764615040174,-500.0,0.00015557,2]
[395316155,1764615040183,-500.0,0.00015557,2]
[395316156,1764615040193,-500.0,0.00015557,2]
[395316157,1764615040202,-500.0,0.00015557,2]
[395316158,1764615040212,-151.0,0.00015557,2]
[395316159,1764615040222,-151.0,0.00015557,2]
[395316160,1764615040231,-151.0,0.00015557,2]
[395316161,1764615040240,-151.0,0.00015557,2]
[395316163,1764615040249,-151.0,0.00015557,2]
[395316164,1764615040259,-151.0,0.00015557,2]
[395316165,1764615040268,-151.0,0.00015557,2]
[395316166,1764615040278,-151.0,0.00015557,2]
[395316167,1764615040287,-151.0,0.00015557,2]
[395316168,1764615040296,-151.0,0.00015557,2]
[395316169,1764615040305,-151.0,0.00015557,2]
[395316170,1764615040314,-151.0,0.00015557,2]
[395316171,1764615040323,-151.0,0.00015557,2]
[395316172,1764615040332,-1491.87,0.00015557,2]
[395316173,1764615040341,-500.0,0.00015565,2]
[395316174,1764615040350,-572.16,0.00015565,2]
[395316175,1764615040358,-500.0,0.00015565,2]
[395316176,1764615040368,-1051.85827338,0.00015565,5]
[395316177,1764615040377,-600.0,0.00015566,2]
[395316178,1764615040387,-150.0,0.00015578,2]
[395316179,1764615040396,-1000.0,0.00015666,2]
[395316180,1764615040406,-500.0,0.00015766,2]
[395316181,1764615040415,-500.0,0.00015766,2]
[395316182,1764615040424,-500.0,0.00015766,2]
[395316183,1764615040434,-500.0,0.00015766,2]
[395316184,1764615040443,-500.0,0.00015766,2]
[395316185,1764615040452,-500.0,0.00015766,2]
[395316186,1764615040462,-500.0,0.00015766,2]
[395316187,1764615040471,-156.54985602,0.00015766,2]
[395316188,1764615040480,-500.0,0.00015766,2]
[395316189,1764615040490,-291.28618921,0.00015766,2]
[395316190,1764615040499,-500.0,0.00015766,2]
[395316191,1764615040508,-500.0,0.00015766,2]
[395316192,1764615040518,-500.0,0.00015766,2]
[395316193,1764615040527,-500.0,0.00015766,2]
[395316194,1764615040536,-500.0,0.00015766,2]
[395316195,1764615040546,-500.0,0.00015766,2]
[395316196,1764615040556,-1491.87,0.00015831,2]
[395316197,1764615040566,-153.78,0.00015988,2]
[395316198,1764615040575,-500.0,0.00015999,2]
[395316199,1764615040584,-500.0,0.00015999,2]
[395316200,1764615040594,-500.0,0.00015999,2]
[395316201,1764615040603,-151.0,0.00016005,2]
[395316202,1764615040613,-200.0,0.00016105,2]
[395316203,1764615040622,-200.0,0.00016105,2]
[395316204,1764615040632,-500.0,0.00016105,2]
[395316205,1764615040642,-1491.87,0.00016105,2]
[395316206,1764615040651,-600.0,0.00016114,2]
[395316207,1764615040660,-9999.99,0.00016116,2]
[395316208,1764615040670,-500.0,0.00016299,2]
[395316209,1764615040680,-500.0,0.00016299,2]
[395316210,1764615040689,-500.0,0.00016299,2]
[395316211,1764615040699,-1491.87,0.00016379,2]
[395316212,1764615040708,-199.0,0.00016434,2]
[395316213,1764615040718,-500.0,0.00016438,2]
[395316214,1764615040727,-500.0,0.00016438,2]
[395316215,1764615040737,-500.0,0.00016438,2]
[395316216,1764615040746,-500.0,0.00016438,2]
[395316217,1764615040755,-500.0,0.00016438,2]
[395316218,1764615040764,-358.61441126,0.00016438,2]
[395316219,1764615040773,-500.0,0.00016438,2]
[395316220,1764615040782,-500.0,0.00016438,2]
[395316221,1764615040791,-500.0,0.00016438,2]
[395316222,1764615040801,-199.0,0.00016494,2]
[395316223,1764615040810,-255.0,0.00016594,2]
[395316224,1764615040819,-200.0,0.00016653,2]
[395316225,1764615040829,-500.0,0.00016653,2]
[395316226,1764615040838,-1491.87,0.00016653,2]
[395316227,1764615040847,-1175.73,0.00016657,2]
[395316228,1764615040856,-2421.2808202,0.00016662,2]
[395316229,1764615040866,-600.0,0.00016662,2]
[395316230,1764615040875,-199.0,0.00016663,2]
[395316231,1764615040889,-168.0,0.00016668,2]
[395316232,1764615040898,-199.0,0.00016683,2]
[395316233,1764615040907,-167.81,0.00016695,2]
[395316234,1764615040917,-199.0,0.00016704,2]
[395316235,1764615040926,-168.0,0.00016775,2]
[395316236,1764615040936,-206.0,0.00016894,2]
[395316237,1764615040946,-500.0,0.00016896,2]
[395316238,1764615040955,-199.0,0.00016912,2]
[395316239,1764615040965,-1491.87,0.00016927,2]
[395316240,1764615040974,-300.85730487,0.00016973,2]
[395316241,1764615040984,-500.0,0.00016973,2]
[395316242,1764615040993,-162.69006403,0.00016973,2]
[395316243,1764615041002,-500.0,0.00016973,2]
[395316244,1764615041011,-500.0,0.00016973,2]
[395316245,1764615041020,-505.34047278,0.00016973,2]
[395316246,1764615041029,-500.0,0.00016973,2]
[395316247,1764615041039,-500.0,0.00016973,2]
[395316248,1764615041047,-500.0,0.00016973,2]
[395316249,1764615041056,-201.14127779,0.00016973,2]
[395316250,1764615041066,-500.0,0.00016973,2]
[395316251,1764615041076,-233.06885898,0.00016973,2]
[395316252,1764615041085,-500.0,0.00016973,2]
[395316253,1764615041097,-500.0,0.00016973,2]
[395316254,1764615041108,-501.10650118,0.00016973,2]
[395316255,1764615041117,-500.0,0.00016973,2]
[395316256,1764615041127,-500.0,0.00016973,2]
[395316257,1764615041138,-500.0,0.00016973,2]
[395316258,1764615041148,-500.0,0.00016973,2]
[395316259,1764615041158,-623.00541346,0.00016973,2]
[395316260,1764615041167,-522.79968162,0.00016999,2]
[395316261,1764615041176,-467.59,0.00017,3]
[395316262,1764615041186,-199.0,0.00017004,2]
[395316263,1764615041195,-168.0,0.00017014,2]
[395316264,1764615041205,-252.0,0.00017035,2]
[395316265,1764615041216,-199.0,0.00017052,2]
[395316266,1764615041225,-153.78,0.00017054,2]
[395316267,1764615041235,-168.0,0.00017099,2]
[395316268,1764615041244,-250.0,0.00017157,2]
[395316269,1764615041254,-1491.87,0.00017201,2]
[395316270,1764615041264,-600.0,0.0001721,2]
[395316271,1764615041273,-199.0,0.00017263,2]
[395316272,1764615041282,-168.0,0.00017359,2]
[395316273,1764615041292,-199.0,0.00017396,2]
[395316274,1764615041301,-199.0,0.00017408,2]
[395316275,1764615041311,-199.0,0.00017442,2]
[395316276,1764615041320,-168.0,0.00017455,2]
[395316277,1764615041329,-1491.87,0.00017475,2]
[395316278,1764615041338,-1000.0,0.00017521,2]
[395316279,1764615041349,-1000.0,0.00017521,2]
[395316280,1764615041358,-1000.0,0.00017521,2]
[395316281,1764615041367,-298.0023857,0.00017521,2]
[395316282,1764615041377,-871.11170021,0.00017521,2]
[395316283,1764615041386,-1000.0,0.00017521,2]
[395316284,1764615041396,-366.67180907,0.00017521,2]
[395316285,1764615041405,-1023.07376951,0.00017521,2]
[395316286,1764615041415,-1000.0,0.00017521,2]
[395316287,1764615041424,-295.34585817,0.00017521,2]
[395316288,1764615041434,-168.0,0.00017577,2]
[395316289,1764615041445,-168.0,0.00017585,2]
[395316290,1764615041455,-168.0,0.00017625,2]
[395316291,1764615041465,-199.0,0.00017631,2]
[395316292,1764615041474,-1491.87,0.00017748,2]
[395316293,1764615041483,-168.0,0.00017749,2]
[395316294,1764615041493,-600.0,0.00017758,2]
[395316295,1764615041502,-500.0,0.00017773,2]
[395316296,1764615041512,-500.0,0.00017773,2]
[395316297,1764615041521,-355.07457118,0.00017773,2]
[395316298,1764615041531,-500.0,0.00017773,2]
[395316299,1764615041540,-500.0,0.00017773,2]
[395316300,1764615041550,-500.0,0.00017773,2]
[395316301,1764615041559,-500.0,0.00017773,2]
[395316302,1764615041569,-500.0,0.00017773,2]
[395316303,1764615041579,-500.0,0.00017773,2]
[395316304,1764615041588,-500.0,0.00017773,2]
[395316305,1764615041598,-160.09780403,0.00017773,2]
[395316306,1764615041607,-183.87070732,0.00017773,2]
[395316307,1764615041617,-502.39177324,0.00017773,2]
[395316308,1764615041627,-500.0,0.00017773,2]
[395316309,1764615041976,-500.0,0.00017773,2]
[395316310,1764615041988,-500.0,0.00017773,2]
[395316311,1764615041997,-329.72446081,0.00017773,2]
[395316312,1764615042007,-500.0,0.00017773,2]
[395316313,1764615042016,-501.4742826,0.00017773,2]
[395316314,1764615042025,-500.0,0.00017773,2]
[395316315,1764615042034,-500.0,0.00017773,2]
[395316316,1764615042044,-160.09574989,0.00017773,2]
[395316317,1764615042054,-500.0,0.00017773,2]
[395316318,1764615042063,-500.0,0.00017773,2]
[395316319,1764615042072,-500.0,0.00017773,2]
[395316320,1764615042082,-500.0,0.00017773,2]
[395316321,1764615042091,-500.0,0.00017773,2]
[395316322,1764615042100,-500.0,0.00017773,2]
[395316323,1764615042109,-500.5084331,0.00017773,2]
[395316324,1764615042118,-160.09684565,0.00017773,2]
[395316325,1764615042127,-500.0,0.00017773,2]
[395316326,1764615042137,-500.0,0.00017773,2]
[395316327,1764615042147,-160.09669624,0.00017773,2]
[395316328,1764615042156,-160.09796136,0.00017773,2]
[395316329,1764615042166,-500.0,0.00017773,2]
[395316330,1764615042176,-500.0,0.00017773,2]
[395316331,1764615042185,-500.0,0.00017773,2]
[395316332,1764615042195,-219.62013657,0.00017773,2]
[395316333,1764615042205,-557.4345573,0.00017773,2]
[395316334,1764615042215,-500.0,0.00017773,2]
[395316335,1764615042224,-500.0,0.00017773,2]
[395316336,1764615042234,-500.0,0.00017773,2]
[395316337,1764615042243,-500.0,0.00017773,2]
[395316338,1764615042252,-500.0,0.00017773,2]
[395316339,1764615042262,-160.09311838,0.00017773,2]
[395316340,1764615042271,-500.0,0.00017773,2]
[395316341,1764615042281,-500.0,0.00017773,2]
[395316342,1764615042290,-500.0,0.00017773,2]
[395316343,1764615042300,-500.0,0.00017773,2]
[395316344,1764615042309,-500.0,0.00017773,2]
[395316345,1764615042319,-570.14905858,0.00017773,2]
[395316346,1764615042328,-500.0,0.00017773,2]
[395316347,1764615042337,-500.0,0.00017773,2]
[395316348,1764615042347,-500.0,0.00017773,2]
[395316349,1764615042357,-199.0,0.00017859,2]
[395316350,1764615042367,-168.0,0.00017917,2]
[395316351,1764615042376,-427.65493559,0.00017966,2]
[395316352,1764615042385,-1491.87,0.00018022,2]
[395316353,1764615042395,-997.87679415,0.00018068,2]
[395316354,1764615042405,-1500.0,0.00018068,2]
[395316355,1764615042414,-1500.0,0.00018068,2]
[395316357,1764615042423,-1500.0,0.00018068,2]
[395316358,1764615042433,-1500.0,0.00018068,2]
[395316359,1764615042442,-1000.0,0.00018082,2]
[395316361,1764615042452,-153.78,0.0001812,2]
[395316363,1764615042461,-484.59708163,0.00018206,2]
[395316365,1764615042471,-958.72839442,0.00018216,2]
[395316366,1764615042481,-311.1,0.00018216,2]
[395316367,1764615042492,-1328.07662834,0.00018216,2]
[395316368,1764615042502,-151.0,0.00018216,2]
[395316369,1764615042512,-514.84070869,0.00018216,2]
[395316370,1764615042521,-1500.0,0.00018216,2]
[395316371,1764615042530,-1500.0,0.00018216,2]
[395316372,1764615042540,-1500.0,0.00018216,2]
[395316373,1764615042550,-1500.0,0.00018216,2]
[395316374,1764615042559,-1500.0,0.00018216,2]
[395316375,1764615042568,-151.0,0.00018216,2]
[395316376,1764615042578,-1500.0,0.00018216,2]
[395316377,1764615042587,-1500.0,0.00018216,2]
[395316378,1764615042597,-250.0,0.00018216,2]
[395316379,1764615042607,-1500.0,0.00018216,2]
[395316380,1764615042616,-250.0,0.00018216,2]
[395316381,1764615042626,-1500.0,0.00018216,2]
[395316382,1764615042635,-2750.0,0.00018216,2]
[395316383,1764615042645,-250.0,0.00018216,2]
[395316384,1764615042654,-871.7798745,0.00018216,2]
[395316385,1764615042664,-354.84418245,0.00018216,2]
[395316386,1764615042673,-151.0,0.00018216,2]
[395316387,1764615042683,-151.0,0.00018216,2]
[395316388,1764615042692,-156.587,0.00018216,2]
[395316389,1764615042702,-500.0,0.00018216,2]
[395316390,1764615042711,-162.380719,0.00018216,2]
[395316391,1764615042721,-500.0,0.00018216,2]
[395316392,1764615042731,-151.48487804,0.00018216,2]
[395316393,1764615042740,-500.0,0.00018216,2]
[395316394,1764615042749,-382.0011413,0.00018216,2]
[395316395,1764615042759,-10000.0,0.00018216,2]
[395316396,1764615042769,-10000.0,0.00018216,2]
[395316397,1764615042778,-10000.0,0.00018216,2]
[395316398,1764615042787,-519.22236546,0.00018216,2]
[395316399,1764615042797,-220.0,0.00018216,2]
[395316400,1764615042806,-1000.0,0.00018216,2]
[395316401,1764615042816,-10000.0,0.00018216,2]
[395316402,1764615042825,-234.67943684,0.00018216,2]
[395316403,1764615042835,-221.73898581,0.00018216,2]
[395316404,1764615042845,-1000.0,0.00018216,2]
[395316405,1764615042855,-10000.0,0.00018216,2]
[395316406,1764615042864,-1000.0,0.00018216,2]
[395316407,1764615042873,-10000.0,0.00018216,2]
[395316408,1764615042885,-578.20924308,0.00018216,2]
[395316409,1764615042895,-10000.0,0.00018216,2]
[395316410,1764615042904,-10000.0,0.00018216,2]
[395316411,1764615042913,-10000.0,0.00018216,2]
[395316412,1764615042923,-10000.0,0.00018216,2]
[395316413,1764615042933,-10000.0,0.00018216,2]
[395316414,1764615042942,-10000.0,0.00018216,2]
[395316415,1764615042952,-10000.0,0.00018216,2]
[395316416,1764615042962,-8000.0,0.00018216,2]
[395316417,1764615042971,-8000.0,0.00018216,2]
[395316418,1764615042981,-3000.0,0.00018216,2]
[395316419,1764615042990,-8000.0,0.00018216,2]
[395316420,1764615042999,-3000.0,0.00018216,2]
[395316421,1764615043008,-8000.0,0.00018216,2]
[395316422,1764615043018,-500.0,0.00018216,2]
[395316423,1764615043027,-3000.0,0.00018216,2]
[395316424,1764615043036,-8000.0,0.00018216,2]
[395316425,1764615043046,-500.0,0.00018216,2]
[395316426,1764615043055,-3000.0,0.00018216,2]
[395316427,1764615043064,-8000.0,0.00018216,2]
[395316428,1764615043074,-500.0,0.00018216,2]
[395316430,1764615043083,-3000.0,0.00018216,2]
[395316432,1764615043092,-8000.0,0.00018216,2]
[395316434,1764615043102,-500.0,0.00018216,2]
[395316436,1764615043111,-3000.0,0.00018216,2]
[395316437,1764615043121,-8000.0,0.00018216,2]
[395316438,1764615043130,-500.0,0.00018216,2]
[395316439,1764615043140,-3000.0,0.00018216,2]
[395316440,1764615043149,-1000.0,0.00018216,2]
[395316441,1764615043158,-500.0,0.00018216,2]
[395316442,1764615043167,-8000.0,0.00018216,2]
[395316443,1764615043176,-3000.0,0.00018216,2]
[395316444,1764615043185,-1000.0,0.00018216,2]
[395316445,1764615043194,-8000.0,0.00018216,2]
[395316446,1764615043204,-3000.0,0.00018216,2]
[395316447,1764615043213,-500.0,0.00018216,2]
[395316448,1764615043222,-1000.0,0.00018216,2]
[395316449,1764615043231,-8000.0,0.00018216,2]
[395316450,1764615043241,-3000.0,0.00018216,2]
[395316452,1764615043250,-500.0,0.00018216,2]
[395316454,1764615043260,-1000.0,0.00018216,2]
[395316455,1764615043269,-3000.0,0.00018216,2]
[395316456,1764615043278,-4148.05773878,0.00018216,2]
[395316457,1764615043287,-500.0,0.00018216,2]
[395316458,1764615043296,-1000.0,0.00018216,2]
[395316459,1764615043306,-3000.0,0.00018216,2]
[395316460,1764615043315,-500.0,0.00018216,2]
[395316461,1764615043324,-1000.0,0.00018216,2]
[395316462,1764615043333,-1000.0,0.00018216,2]
[395316463,1764615043342,-3000.0,0.00018216,2]
[395316464,1764615043352,-500.0,0.00018216,2]
[395316465,1764615043362,-1000.0,0.00018216,2]
[395316466,1764615043371,-1000.0,0.00018216,2]
[395316467,1764615043380,-500.0,0.00018216,2]
[395316468,1764615043389,-1000.0,0.00018216,2]
[395316469,1764615043399,-1000.0,0.00018216,2]
[395316470,1764615043409,-1000.0,0.00018216,2]
[395316471,1764615043419,-500.0,0.00018216,2]
[395316472,1764615043428,-1000.0,0.00018216,2]
[395316473,1764615043437,-1000.0,0.00018216,2]
[395316474,1764615043447,-1000.0,0.00018216,2]
[395316475,1764615043456,-1000.0,0.00018216,2]
[395316476,1764615043465,-1000.0,0.00018216,2]
[395316477,1764615043474,-1000.0,0.00018216,2]
[395316478,1764615043484,-1000.0,0.00018216,2]
[395316479,1764615043493,-1000.0,0.00018216,2]
[395316480,1764615043503,-1000.0,0.00018216,2]
[395316481,1764615043512,-1000.0,0.00018216,2]
[395316482,1764615043522,-1000.0,0.00018216,2]
[395316483,1764615043532,-1000.0,0.00018216,2]
[395316484,1764615043542,-1000.0,0.00018216,2]
[395316485,1764615043552,-1000.0,0.00018216,2]
[395316486,1764615043560,-257.91778498,0.00018216,2]
[395316487,1764615043571,-1000.0,0.00018216,2]
[395316488,1764615043581,-1000.0,0.00018216,2]
[395316489,1764615043591,-1000.0,0.00018216,2]
[395316490,1764615043604,-1000.0,0.00018216,2]
[395316491,1764615043614,-1000.0,0.00018216,2]
[395316492,1764615043624,-1000.0,0.00018216,2]
[395316493,1764615043634,-762.94247186,0.00018216,2]
[395316494,1764615043644,-1000.0,0.00018216,2]
[395316495,1764615043654,-300.0,0.00018216,2]
[395316496,1764615043663,-151.0,0.00018216,2]
[395316497,1764615043672,-620.0,0.00018216,2]
[395316498,1764615043682,-2750.0,0.00018271,2]
[395316499,1764615043691,-222.4738,0.00018296,2]
[395316500,1764615043700,-1491.87,0.00018296,2]
[395316501,1764615043708,-600.0,0.00018306,2]
[395316502,1764615043717,-151.0,0.00018318,2]
[395316503,1764615043726,-1000.0,0.00018321,2]
[395316504,1764615043735,-1000.0,0.00018321,2]
[395316505,1764615043744,-338.74802037,0.00018321,2]
[395316506,1764615043753,-1000.0,0.00018321,2]
[395316507,1764615043762,-500.0,0.00018321,2]
[395316508,1764615043771,-1000.0,0.00018321,2]
[395316509,1764615043780,-1000.0,0.00018321,2]
[395316510,1764615043789,-750.0,0.00018321,2]
[395316511,1764615043798,-957.63452341,0.00018321,2]
[395316512,1764615043808,-1000.0,0.00018321,2]
[395316513,1764615043817,-280.35705212,0.00018321,2]
[395316514,1764615043826,-1000.0,0.00018321,2]
[395316515,1764615043835,-516.50455865,0.00018321,2]
[395316516,1764615043844,-1000.0,0.00018321,2]
[395316517,1764615043854,-1000.0,0.00018321,2]
[395316518,1764615043863,-1000.0,0.00018321,2]
[395316519,1764615043872,-614.46769762,0.00018321,2]
[395316520,1764615043881,-503.07122512,0.00018321,2]
[395316521,1764615043894,-654.41744648,0.00018321,2]
[395316522,1764615043903,-1000.0,0.00018321,2]
[395316523,1764615043911,-1000.0,0.00018321,2]
[395316524,1764615043921,-1000.0,0.00018321,2]
[395316525,1764615043931,-1000.0,0.00018321,2]
[395316526,1764615043941,-1000.0,0.00018321,2]
[395316527,1764615043950,-485.38331852,0.00018321,2]
[395316528,1764615043960,-1000.0,0.00018321,2]
[395316529,1764615043970,-1000.0,0.00018321,2]
[395316530,1764615043980,-1000.0,0.00018321,2]
[395316531,1764615043990,-1000.0,0.00018321,2]
[395316532,1764615044000,-1000.0,0.00018321,2]
[395316533,1764615044010,-696.42213297,0.00018321,2]
[395316534,1764615044020,-1000.0,0.00018321,2]
[395316535,1764615044029,-1035.1038375,0.00018321,2]
[395316536,1764615044038,-160.17885855,0.00018321,2]
[395316537,1764615044048,-548.82474691,0.00018321,2]
[395316538,1764615044057,-495.9241853,0.00018321,2]
[395316539,1764615044067,-1000.0,0.00018321,2]
[395316540,1764615044077,-2750.0,0.00018326,2]
[395316541,1764615044087,-2750.0,0.00018381,2]
[395316542,1764615044099,-2750.0,0.00018436,2]
[395316543,1764615044109,-2750.0,0.00018491,2]
[395316544,1764615044118,-1175.73,0.00018508,2]
[395316545,1764615044128,-2750.0,0.00018546,2]
[395316546,1764615044138,-167.81,0.0001855,2]
[395316547,1764615044148,-1491.87706299,0.0001857,2]
[395316548,1764615044158,-2750.0,0.00018601,2]
[395316549,1764615044168,-2000.0,0.00018616,2]
[395316550,1764615044178,-2000.0,0.00018616,2]
[395316551,1764615044188,-501.51277925,0.00018616,2]
[395316552,1764615044197,-2000.0,0.00018616,2]